[Event "WSCC  M65 2019"]
[Site "Bucharest"]
[Date "2019.11.12"]
[Round "1.36"]
[White "Balashov, Yuri S"]
[Black "Zhelesny, Stanislav"]
[Result "1-0"]
[ECO "B10"]
[WhiteElo "2457"]
[BlackElo "2003"]
[Annotator "RC"]
[PlyCount "37"]
[EventDate "2019.11.12"]
[EventType "swiss"]
[EventCountry "ROU"]
[SourceTitle "playchess.com"]
[Source "ChessBase"]
[SourceQuality "1"]
[TimeControl "40/5400+30:1800+30"]

1. e4 {[%emt 0:00:00]} c6 {[%emt 0:00:00]} 2. c4 {[%emt 0:01:10]} g6 {[%emt 0:02:28]} 3. Nc3 {[%emt 0:00:30]} Bg7 4. d4 d6 5. Nf3 {[%emt 0:01:00]} Bg4 6. Be2 Nf6 {[%emt 0:02:00]} 7. O-O {[%emt 0:01:00]} O-O {[%emt 0:00:30]} 8. Be3 {[%emt 0:02:39]} Nbd7 {[%emt 0:05:57]} 9. Qd2 {[%emt 0:05:25]} Rb8 {[%emt 0:17:52]} 10. h3 {[%emt 0:03:06]} Bxf3 {[%emt 0:00:12]} 11. Bxf3 {[%emt 0:00:06]} b5 {[%emt 0:02:55]} 12. cxb5 {[%emt 0:01:16]} cxb5 {[%emt 0:00:07]} 13. a3 {[%emt 0:01:47]} a6 {[%emt 0:01:33]} 14. Rac1 {[%emt 0:03:42]} Qa5 {[%emt 0:04:34]} 15. Nd5 {[%emt 0:09:57]} Qd8 {[%emt 0:02:35]} 16. Nb4 {[%emt 0:01:17]} Qa5 {[%emt 0:03:46]} 17. Qd3 {[%emt 0:03:15]} Rbe8 {[%emt 0:03:50]} 18. Nc6 {[%emt 0:00:18]} Qb6 {[%emt 0:04:17]} 19. e5 {[%emt 0:01:24]} 1-0

[Event "WSCC  M65 2019"]
[Site "Bucharest"]
[Date "2019.11.12"]
[Round "1.37"]
[White "Alquist, Erik"]
[Black "Jansa, Vlastimil"]
[Result "1-0"]
[ECO "B45"]
[WhiteElo "2003"]
[BlackElo "2436"]
[Annotator "NA"]
[PlyCount "104"]
[EventDate "2019.11.12"]
[EventType "swiss"]
[EventCountry "ROU"]
[SourceTitle "playchess.com"]
[Source "ChessBase"]
[SourceQuality "1"]
[TimeControl "40/5400+30:1800+30"]

1. e4 {[%emt 0:00:00]} c5 {[%emt 0:00:00]} 2. Nf3 {[%emt 0:00:00]} Nc6 {[%emt 0:00:00]} 3. d4 {[%emt 0:00:00]} cxd4 {[%emt 0:00:00]} 4. Nxd4 {[%emt 0:00:00]} e6 {[%emt 0:00:00]} 5. Nc3 {[%emt 0:00:27]} d6 {[%emt 0:00:19]} 6. Be3 {[%emt 0:00:30]} Nf6 7. Qe2 {B80: Sicilian Scheveningen: 6 g3 and 6 Be3, including English Attack} (7. f3 Be7 8. Qd2 O-O 9. O-O-O d5 10. Be2 dxe4 11. Nxc6 bxc6 12. Qxd8 Bxd8 13. Nxe4 Nxe4 14. fxe4 Bb6 15. Bxb6 axb6 16. a3 Ba6 17. Bxa6 Rxa6 18. Rd6 {1-0 (78) Saric,I (2689)-Korobov,A (2685) Biograd 2018}) 7... a6 {[%emt 0:04:18]} 8. O-O-O {[%emt 0:00:42]} Qc7 {[%emt 0:12:17]} 9. g4 {[%emt 0:04:43]} Nxd4 {[%emt 0:02:16]} 10. Rxd4 {[%emt 0:00:39]} b5 {[%emt 0:00:38]} 11. g5 {[%emt 0:04:58]} Nd7 {[%emt 0:01:07]} 12. f4 Bb7 {[%emt 0:06:13]} 13. Bg2 {[%emt 0:03:59]} Nb6 $146 {[%emt 0:09:16]} ({Predecessor:} 13... Rc8 14. f5 e5 {0-1 (38) Rabatin,J (2286)-Jansa,V (2446) Ostrava 2017}) 14. Kb1 {[%emt 0:03:52]} h6 {[%emt 0:14:21]} 15. g6 {[%emt 0:12:27]} Nc4 {[%emt 0:03:41]} 16. gxf7+ {[%emt 0:06:19]} Qxf7 {[%emt 0:00:13]} 17. Bc1 {[%emt 0:03:11]} Be7 {[%emt 0:03:17]} 18. Rg1 {[%emt 0:02:16]} O-O-O {[%emt 0:09:49]} 19. Rxc4+ {[%emt 0:05:18]} bxc4 {[%emt 0:02:01]} 20. Qxc4+ {[%emt 0:00:08]} Kb8 {[%emt 0:00:21]} 21. Be3 {[%emt 0:01:29]} Bf6 {[%emt 0:08:28]} 22. Na4 {[%emt 0:04:25]} d5 {[%emt 0:04:40]} 23. exd5 {[%emt 0:03:18]} Bxd5 {[%emt 0:00:51]} 24. Bxd5 {[%emt 0:03:10]} exd5 {[%emt 0:00:10]} 25. Qxa6 {[%emt 0:02:42]} Qb7 {[%emt 0:00:40]} 26. Qa5 {[%emt 0:06:01]} d4 {[%emt 0:01:01]} 27. Nc5 {[%emt 0:02:26]} Qc6 {[%emt 0:01:22]} 28. Bd2 {[%emt 0:03:30]} Rd5 {[%emt 0:03:31]} 29. b4 {[%emt 0:01:20]} Re8 {[%emt 0:05:10]} 30. f5 {[%emt 0:02:28]} Re7 {[%emt 0:02:21]} 31. Bf4+ {[%emt 0:04:16]} Kc8 {[%emt 0:00:06]} 32. Qa3 {[%emt 0:06:13]} Rxc5 {[%emt 0:02:34]} 33. bxc5 {[%emt 0:00:38]} Rb7+ {[%emt 0:00:29]} 34. Kc1 {[%emt 0:00:43]} d3 {[%emt 0:00:44]} 35. Qxd3 {[%emt 0:04:09]} Qxc5 {[%emt 0:00:50]} 36. Be3 {[%emt 0:00:52]} Qa5 {[%emt 0:01:18]} 37. Qc4+ {[%emt 0:02:02]} Rc7 {[%emt 0:00:51] [#]} 38. Qe6+ {[%emt 0:01:50]} (38. Qg8+ $1 $18 Bd8 39. Qe6+ Rd7 40. Bd4) 38... Kb7 $18 {[%emt 0:00:23]} (38... Rd7 $16 39. Qg8+ Kb7 40. Qb3+ Ka8) 39. Qb3+ {[%emt 0:01:21]} Ka6 {[%emt 0:01:31]} 40. Rd1 {[%emt 0:00:00]} Rc6 {[%emt 0:00:00]} 41. a4 {[%emt 0:13:43]} Qe5 {[%emt 0:10:55]} 42. Qd3+ {[%emt 0:04:41]} Kb7 {[%emt 0:00:13]} 43. Qb5+ {[%emt 0:06:20]} Qxb5 {[%emt 0:00:08]} 44. axb5 {[%emt 0:00:02]} Rc4 {[%emt 0:00:12]} 45. Rd3 {[%emt 0:01:52]} Rb4 {[%emt 0:02:23]} 46. b6 {[%emt 0:01:11]} Kc6 {[%emt 0:09:56]} 47. Rb3 {[%emt 0:01:38]} Rxb3 {[%emt 0:00:11]} 48. cxb3 {[%emt 0:00:01]} Be5 {[%emt 0:00:09]} 49. h3 {[%emt 0:00:16]} Kd5 {[%emt 0:00:24]} 50. Kd2 {[%emt 0:00:26]} Ke4 {[%emt 0:00:55]} 51. b7 {[%emt 0:00:27]} Bb8 {[%emt 0:00:30]} 52. Bxh6 {[%emt 0:01:02]} Kd4 1-0

[Event "WSCC  M65 2019"]
[Site "Bucharest"]
[Date "2019.11.12"]
[Round "1.39"]
[White "Carlsten, Peter"]
[Black "Garcia Palermo, Carlos"]
[Result "0-1"]
[ECO "B18"]
[WhiteElo "2000"]
[BlackElo "2421"]
[Annotator "NA"]
[PlyCount "104"]
[EventDate "2019.11.12"]
[EventType "swiss"]
[EventCountry "ROU"]
[SourceTitle "playchess.com"]
[Source "ChessBase"]
[SourceQuality "1"]
[TimeControl "40/5400+30:1800+30"]

1. e4 {[%emt 0:00:00]} c6 {[%emt 0:00:00]} 2. d4 {[%emt 0:01:38]} d5 {[%emt 0:00:18]} 3. Nc3 {[%emt 0:00:30]} dxe4 {[%emt 0:00:30]} 4. Nxe4 {[%emt 0:00:30]} Bf5 {[%emt 0:00:30]} 5. Ng3 Bg6 6. Nf3 {[%emt 0:01:00]} Nf6 {[%emt 0:00:01]} 7. h4 {[%emt 0:08:21]} h6 {[%emt 0:00:06]} 8. h5 {[%emt 0:00:23]} Bh7 {[%emt 0:00:05]} 9. Bd3 {[%emt 0:00:13]} Bxd3 {[%emt 0:00:16]} 10. Qxd3 {[%emt 0:00:03]} e6 {[%emt 0:00:15]} 11. Bd2 {[%emt 0:00:51]} Nbd7 {[%emt 0:04:16]} 12. O-O-O {[%emt 0:00:42]} Bd6 {[%emt 0:00:13]} 13. Ne4 {[%emt 0:00:33]} Bc7 {[%emt 0:00:29]} 14. Kb1 {[%emt 0:02:49]} Nxe4 {[%emt 0:00:37]} 15. Qxe4 {[%emt 0:00:07]} Nf6 {[%emt 0:00:07]} 16. Qe2 {[%emt 0:00:50]} Qd5 {[%emt 0:00:19]} 17. c4 {[%emt 0:13:43]} Qe4+ {[%emt 0:07:42]} 18. Qxe4 {[%emt 0:01:02]} Nxe4 {[%emt 0:00:30]} 19. Be3 {[%emt 0:10:02]} O-O {[%emt 0:00:32]} 20. Nd2 {[%emt 0:00:43]} Nd6 {[%emt 0:08:39]} 21. Bf4 {[%emt 0:06:03]} Rac8 {[%emt 0:00:40]} 22. c5 {[%emt 0:07:14]} Ne4 {[%emt 0:04:29]} 23. Be3 {[%emt 0:07:49]} Nf6 {[%emt 0:01:59]} 24. f3 {[%emt 0:01:10]} Rcd8 {[%emt 0:01:54]} 25. Ne4 {[%emt 0:04:02]} Nd5 {[%emt 0:08:07]} 26. Bf2 {[%emt 0:00:21]} Rd7 {[%emt 0:02:45]} 27. g3 {[%emt 0:04:53]} f5 {[%emt 0:01:35]} 28. Nc3 {[%emt 0:02:22]} Nf6 {[%emt 0:00:42]} 29. Rde1 {[%emt 0:05:07]} Re8 {[%emt 0:00:47]} 30. f4 {[%emt 0:04:19]} b6 {[%emt 0:05:49]} 31. b4 {[%emt 0:00:47]} bxc5 {[%emt 0:02:31]} 32. dxc5 {[%emt 0:03:49]} Ng4 {[%emt 0:08:14]} 33. Rhf1 {[%emt 0:11:38]} Rd3 {[%emt 0:01:53]} 34. Kc2 {[%emt 0:01:04]} Nxf2 {[%emt 0:08:16]} 35. Rxf2 {[%emt 0:00:15]} Rxg3 {[%emt 0:00:04]} 36. Rd1 {[%emt 0:00:52]} Re7 {[%emt 0:01:50]} 37. Ne2 {[%emt 0:00:21]} Rg4 {[%emt 0:02:50]} 38. Nd4 {[%emt 0:00:32]} Bxf4 {[%emt 0:00:19]} 39. Nxc6 {[%emt 0:00:18]} Rc7 {[%emt 0:00:44]} 40. Nd8 {[%emt 0:00:00]} Be3 {[%emt 0:00:00]} 41. Rf3 {[%emt 0:08:17]} f4 {[%emt 0:32:22]} 42. Nxe6 {[%emt 0:02:04]} Re7 {[%emt 0:00:12]} 43. Rd8+ {[%emt 0:16:06]} Kf7 {[%emt 0:00:17]} 44. Nd4 {[%emt 0:00:10]} Rg2+ {[%emt 0:02:14]} 45. Kb3 {[%emt 0:01:33]} Rd2 {[%emt 0:11:34]} 46. Nc6 {[%emt 0:00:26]} Rxd8 {[%emt 0:00:11]} 47. Nxd8+ {[%emt 0:00:05]} Kf6 {[%emt 0:00:13]} 48. Kc4 {[%emt 0:00:34]} Kf5 {[%emt 0:00:38]} 49. Nc6 {[%emt 0:00:35]} Rc7 {[%emt 0:02:24]} 50. Nd8 {[%emt 0:05:02]} Rd7 {[%emt 0:01:55]} 51. Nc6 {[%emt 0:00:21]} Rd1 {[%emt 0:00:53]} 52. Ne7+ {[%emt 0:01:52]} Kg4 {[%emt 0:00:34] Kd4} 0-1

[Event "WSCC  M65 2019"]
[Site "Bucharest"]
[Date "2019.11.12"]
[Round "1.40"]
[White "Kristiansen, Jens"]
[Black "Buxade Roca, Guillermo"]
[Result "1-0"]
[ECO "A04"]
[WhiteElo "2411"]
[BlackElo "1995"]
[Annotator "ChessBase"]
[PlyCount "77"]
[EventDate "2019.11.12"]
[EventType "swiss"]
[EventCountry "ROU"]
[SourceTitle "playchess.com"]
[Source "ChessBase"]
[SourceQuality "1"]
[TimeControl "40/5400+30:1800+30"]

1. Nf3 {[%emt 0:00:00]} c5 {[%emt 0:00:31]} 2. g3 {[%emt 0:00:04]} Nc6 {[%emt 0:00:30]} 3. Bg2 {[%emt 0:00:30]} g6 {[%emt 0:00:30]} 4. O-O {[%emt 0:00:30]} Bg7 5. e4 d6 {[%emt 0:01:00]} 6. c3 {[%emt 0:02:15]} Nf6 {[%emt 0:04:20]} 7. d4 {[%emt 0:03:01]} O-O {[%emt 0:00:36]} 8. d5 {[%emt 0:02:57]} Ne5 {[%emt 0:03:48]} 9. Nxe5 {[%emt 0:00:36]} dxe5 {[%emt 0:00:08]} 10. c4 {[%emt 0:02:26]} Ne8 {[%emt 0:08:58]} 11. Nc3 {[%emt 0:02:31]} Nd6 {[%emt 0:00:33]} 12. Qe2 {[%emt 0:01:15]} Bd7 {[%emt 0:02:29]} 13. Be3 {[%emt 0:05:17]} Qc8 {[%emt 0:00:29]} 14. Rac1 {[%emt 0:10:36]} a6 {[%emt 0:05:51]} 15. f4 {[%emt 0:06:22]} b5 {[%emt 0:02:49]} 16. b3 {[%emt 0:00:52]} bxc4 {[%emt 0:04:57]} 17. bxc4 {[%emt 0:00:28]} Rb8 {[%emt 0:02:11]} 18. Kh1 {[%emt 0:06:26]} Rb4 {[%emt 0:02:32]} 19. Nd1 {[%emt 0:00:28]} Qc7 {[%emt 0:09:57]} 20. Nf2 {[%emt 0:04:52]} Rfb8 {[%emt 0:01:39]} 21. Nd3 {[%emt 0:03:33]} Rxc4 {[%emt 0:08:17]} 22. fxe5 {[%emt 0:02:12]} Rxc1 {[%emt 0:05:40]} 23. Rxc1 {[%emt 0:00:15]} Nb7 {[%emt 0:00:52]} 24. Bf4 {[%emt 0:04:21]} e6 {[%emt 0:01:18]} 25. d6 {[%emt 0:04:12]} Qa5 {[%emt 0:00:38]} 26. Qf2 {[%emt 0:04:58]} Qa4 {[%emt 0:01:47]} 27. h4 {[%emt 0:06:20]} h5 {[%emt 0:02:15]} 28. Nxc5 {[%emt 0:06:12]} Nxc5 {[%emt 0:00:11]} 29. Rxc5 {[%emt 0:00:21]} Rb1+ {[%emt 0:03:24]} 30. Kh2 {[%emt 0:00:15]} Ra1 {[%emt 0:01:13]} 31. Rc2 {[%emt 0:02:23]} Qa5 {[%emt 0:07:44]} 32. Qa7 {[%emt 0:03:42]} Qa4 {[%emt 0:04:20]} 33. Rc7 {[%emt 0:02:41]} Rxa2 {[%emt 0:00:20]} 34. Rxd7 {[%emt 0:00:30]} Qc2 {[%emt 0:01:22]} 35. Qg1 {[%emt 0:00:13]} Qxe4 {[%emt 0:00:12]} 36. Kh1 {[%emt 0:01:39]} Qa4 {[%emt 0:01:17]} 37. Rc7 {[%emt 0:00:28]} Ra1 {[%emt 0:01:33]} 38. Rc1 {[%emt 0:00:22]} Ra2 {[%emt 0:01:17]} 39. Qd1 {[%emt 0:00:50]} 1-0

[Event "WSCC  M65 2019"]
[Site "Bucharest"]
[Date "2019.11.12"]
[Round "1.43"]
[White "Ciuro Munoz, Ricardo"]
[Black "Birnboim, Nathan"]
[Result "0-1"]
[ECO "B06"]
[WhiteElo "1989"]
[BlackElo "2397"]
[Annotator "NA"]
[PlyCount "124"]
[EventDate "2019.11.12"]
[EventType "swiss"]
[EventCountry "ROU"]
[SourceTitle "playchess.com"]
[Source "ChessBase"]
[SourceQuality "1"]
[TimeControl "40/5400+30:1800+30"]

1. e4 {[%emt 0:00:00]} g6 {[%emt 0:00:00]} 2. d4 {[%emt 0:01:23]} c6 3. Nf3 d5 4. exd5 {[%emt 0:01:00]} cxd5 {[%emt 0:01:10]} 5. Bd3 {[%emt 0:01:01]} Bg7 {[%emt 0:00:21]} 6. c3 {[%emt 0:00:22]} Nf6 {[%emt 0:01:41]} 7. Bf4 {[%emt 0:02:50]} Nc6 {[%emt 0:03:22]} 8. h3 {[%emt 0:00:27]} O-O {[%emt 0:00:37]} 9. O-O {[%emt 0:00:47]} Qb6 {[%emt 0:12:08]} 10. Qb3 {[%emt 0:00:50]} Nd7 {[%emt 0:05:32]} 11. Re1 {[%emt 0:04:44]} Re8 {[%emt 0:07:44]} 12. Nbd2 {[%emt 0:03:41]} Qxb3 {[%emt 0:08:48]} 13. axb3 {[%emt 0:00:49]} f6 {[%emt 0:00:46]} 14. b4 {[%emt 0:07:55]} e5 {[%emt 0:01:09]} 15. Bb5 {[%emt 0:02:35]} Kf7 {[%emt 0:15:09]} 16. dxe5 {[%emt 0:11:16]} fxe5 {[%emt 0:00:15]} 17. Be3 {[%emt 0:05:19]} e4 {[%emt 0:06:00]} 18. Bxc6 {[%emt 0:12:45]} bxc6 {[%emt 0:00:07]} 19. Nd4 {[%emt 0:00:09]} Ne5 {[%emt 0:00:48]} 20. N2b3 {[%emt 0:02:28]} Nd3 {[%emt 0:07:08]} 21. Reb1 {[%emt 0:04:40]} Bd7 {[%emt 0:00:29]} 22. Ra6 {[%emt 0:03:16]} Rec8 {[%emt 0:00:23]} 23. Rba1 {[%emt 0:00:29]} Rc7 {[%emt 0:01:44]} 24. Nc5 {[%emt 0:00:52]} Nxc5 {[%emt 0:07:49]} 25. bxc5 {[%emt 0:00:12]} Be5 {[%emt 0:07:08]} 26. b4 {[%emt 0:02:34]} Bxd4 {[%emt 0:02:36]} 27. Bxd4 {[%emt 0:04:03]} Bc8 {[%emt 0:00:05]} 28. R6a5 {[%emt 0:01:22]} a6 {[%emt 0:03:21]} 29. Kf1 {[%emt 0:04:52]} Bb7 {[%emt 0:00:56]} 30. Ke2 {[%emt 0:00:29]} g5 {[%emt 0:00:28]} 31. f3 {[%emt 0:00:25]} Re8 {[%emt 0:00:52]} 32. Rf1 {[%emt 0:03:48]} Kg6 {[%emt 0:00:30]} 33. f4 {[%emt 0:01:17]} Rf7 {[%emt 0:00:46]} 34. fxg5 {[%emt 0:01:52]} Rxf1 {[%emt 0:00:07]} 35. Kxf1 {[%emt 0:00:07]} Kxg5 {[%emt 0:00:10]} 36. Be3+ {[%emt 0:01:10]} Kg6 {[%emt 0:00:23]} 37. Ke2 {[%emt 0:00:58]} h5 {[%emt 0:00:10]} 38. g3 {[%emt 0:00:37]} Rf8 {[%emt 0:00:22]} 39. Ra1 {[%emt 0:01:43]} Rf3 {[%emt 0:00:21]} 40. Rg1 {[%emt 0:00:00]} Bc8 {[%emt 0:00:00]} 41. h4 {[%emt 0:00:47]} Bg4 {[%emt 0:01:14]} 42. Kd2 {[%emt 0:00:17]} Bh3 {[%emt 0:01:28]} 43. Ra1 {[%emt 0:01:34]} Bf1 {[%emt 0:03:56]} 44. Re1 {[%emt 0:02:53]} Bd3 {[%emt 0:05:24]} 45. Rg1 {[%emt 0:01:34]} Kf5 {[%emt 0:01:09]} 46. Bf4 {[%emt 0:08:37]} Kg4 {[%emt 0:00:42]} 47. Re1 {[%emt 0:01:16]} Bc4 {[%emt 0:01:53]} 48. Re3 {[%emt 0:01:36]} Rf2+ {[%emt 0:00:40]} 49. Ke1 {[%emt 0:01:44]} Ra2 {[%emt 0:01:09]} 50. Be5 {[%emt 0:00:34]} Kh3 {[%emt 0:03:59]} 51. Kd1 {[%emt 0:03:08]} Kg2 {[%emt 0:01:16]} 52. Bd4 {[%emt 0:00:07]} Bb3+ {[%emt 0:02:53]} 53. Ke1 {[%emt 0:00:58]} Ra1+ {[%emt 0:00:36]} 54. Kd2 {[%emt 0:02:22]} Kf1 {[%emt 0:00:46]} 55. c4 {[%emt 0:02:51]} Rd1+ {[%emt 0:00:20]} 56. Kc3 {[%emt 0:00:15]} Bxc4 {[%emt 0:00:45]} 57. g4 {[%emt 0:00:17]} hxg4 {[%emt 0:05:58]} 58. Rg3 {[%emt 0:00:01]} Rd3+ {[%emt 0:02:25]} 59. Rxd3 {[%emt 0:00:28]} Bxd3 {[%emt 0:00:16]} 60. Kd2 {[%emt 0:02:45]} g3 {[%emt 0:04:23]} 61. h5 {[%emt 0:00:01]} e3+ {[%emt 0:02:28]} 62. Kxe3 {[%emt 0:10:00]} Be4 0-1

[Event "WSCC  M65 2019"]
[Site "Bucharest"]
[Date "2019.11.12"]
[Round "1.44"]
[White "Mochalov, Evgeny V"]
[Black "Dumitrascu, Cornel"]
[Result "1-0"]
[ECO "E09"]
[WhiteElo "2374"]
[BlackElo "1985"]
[Annotator "NA"]
[PlyCount "60"]
[EventDate "2019.11.12"]
[EventType "swiss"]
[EventCountry "ROU"]
[SourceTitle "playchess.com"]
[Source "ChessBase"]
[SourceQuality "1"]
[TimeControl "40/5400+30:1800+30"]

1. d4 {[%emt 0:00:00]} Nf6 {[%emt 0:00:00]} 2. c4 {[%emt 0:00:00]} e6 {[%emt 0:00:00]} 3. g3 {[%emt 0:00:00]} d5 {[%emt 0:00:15]} 4. Nf3 {[%emt 0:00:00]} Nbd7 {[%emt 0:00:23]} 5. Bg2 {[%emt 0:00:12]} c6 {[%emt 0:00:12]} 6. O-O {[%emt 0:00:45]} Be7 {[%emt 0:00:13]} 7. Qc2 {[%emt 0:00:37]} O-O {[%emt 0:00:28]} 8. Nbd2 {[%emt 0:00:15]} b6 {[%emt 0:02:00]} 9. e4 {[%emt 0:00:17]} Bb7 {[%emt 0:00:10]} 10. e5 {[%emt 0:01:02]} Ne8 {[%emt 0:00:22]} 11. cxd5 {[%emt 0:01:27]} cxd5 {[%emt 0:00:31]} 12. Re1 {[%emt 0:01:01]} Rc8 {[%emt 0:00:41]} 13. Qa4 {[%emt 0:04:01]} a5 {[%emt 0:02:19]} 14. Bf1 {[%emt 0:03:21]} Bc6 {[%emt 0:02:17]} 15. Qd1 {[%emt 0:01:30]} b5 {[%emt 0:00:38]} 16. Bd3 {[%emt 0:01:04]} b4 {[%emt 0:13:19]} 17. Nf1 {[%emt 0:03:08]} Qb6 {[%emt 0:01:29]} 18. Bg5 {[%emt 0:02:14]} Qd8 {[%emt 0:00:54]} 19. Qd2 {[%emt 0:10:44]} g6 {[%emt 0:02:30]} 20. Bh6 {[%emt 0:08:28]} Ng7 {[%emt 0:00:15]} 21. h4 {[%emt 0:00:09]} Re8 {[%emt 0:00:51]} 22. N1h2 {[%emt 0:01:27]} Nf5 {[%emt 0:01:30]} 23. Ng4 {[%emt 0:03:40]} Nxh6 {[%emt 0:06:58]} 24. Nxh6+ {[%emt 0:01:30]} Kg7 {[%emt 0:00:10]} 25. Ng5 {[%emt 0:00:18]} Bxg5 {[%emt 0:00:20]} 26. hxg5 {[%emt 0:00:08]} Qb6 {[%emt 0:00:46]} 27. Qf4 {[%emt 0:01:23]} Rf8 {[%emt 0:00:12]} 28. Rac1 {[%emt 0:04:07]} Bb7 {[%emt 0:00:55]} 29. Rxc8 {[%emt 0:00:17]} Bxc8 {[%emt 0:00:11]} 30. Rc1 {[%emt 0:12:17]} Bb7 {[%emt 0:01:56]} 1-0

[Event "WSCC  M65 2019"]
[Site "Bucharest"]
[Date "2019.11.12"]
[Round "1.45"]
[White "Valenti, Giuseppe"]
[Black "Bogdanov, Valentin"]
[Result "1/2-1/2"]
[ECO "B05"]
[WhiteElo "1982"]
[BlackElo "2350"]
[Annotator "ChessBase"]
[PlyCount "91"]
[EventDate "2019.11.12"]
[EventType "swiss"]
[EventCountry "ROU"]
[SourceTitle "playchess.com"]
[Source "ChessBase"]
[SourceQuality "1"]
[TimeControl "40/5400+30:1800+30"]

1. e4 {[%emt 0:16:11]} Nf6 {[%emt 0:00:00]} 2. e5 {[%emt 0:00:44]} Nd5 {[%emt 0:00:00]} 3. d4 {[%emt 0:00:26]} d6 {[%emt 0:00:00]} 4. Nf3 Bg4 {[%emt 0:00:40]} 5. Be2 {[%emt 0:00:18]} e6 {[%emt 0:00:27]} 6. exd6 {[%emt 0:00:14]} cxd6 {[%emt 0:00:32]} 7. c4 {[%emt 0:00:16]} Nf6 {[%emt 0:00:28]} 8. O-O {[%emt 0:00:16]} Be7 {[%emt 0:00:31]} 9. Nc3 O-O {[%emt 0:01:06]} 10. Be3 {[%emt 0:00:48]} d5 {[%emt 0:02:03]} 11. h3 {[%emt 0:00:45]} Bh5 {[%emt 0:00:57]} 12. Qb3 {[%emt 0:00:27]} Nc6 {[%emt 0:03:00]} 13. cxd5 Na5 {[%emt 0:01:03]} 14. Qa4 {[%emt 0:06:05]} Nxd5 {[%emt 0:01:22]} 15. Nxd5 {[%emt 0:08:04]} Qxd5 {[%emt 0:00:23]} 16. Rac1 {[%emt 0:01:36]} a6 {[%emt 0:12:19]} 17. g4 {[%emt 0:01:25]} Bg6 {[%emt 0:01:40]} 18. Ne5 {[%emt 0:00:07]} Rfc8 {[%emt 0:16:00]} 19. Bf3 {[%emt 0:03:20]} Qb5 {[%emt 0:00:19]} 20. Qxb5 {[%emt 0:03:52]} axb5 {[%emt 0:00:02]} 21. a3 {[%emt 0:01:55]} Bd6 {[%emt 0:04:17]} 22. b4 {[%emt 0:04:59]} Nc6 {[%emt 0:06:09]} 23. Nxc6 {[%emt 0:10:34]} bxc6 {[%emt 0:00:02]} 24. Rxc6 {[%emt 0:00:34]} Rxc6 {[%emt 0:00:24]} 25. Bxc6 {[%emt 0:00:09]} Rxa3 {[%emt 0:00:15]} 26. Bxb5 {[%emt 0:01:00]} Bxb4 {[%emt 0:00:21]} 27. Rc1 {[%emt 0:01:13]} h5 {[%emt 0:01:57]} 28. Rc8+ {[%emt 0:02:29]} Kh7 {[%emt 0:00:10]} 29. Bc6 {[%emt 0:04:22]} hxg4 {[%emt 0:19:33]} 30. hxg4 {[%emt 0:00:12]} Rc3 {[%emt 0:03:46]} 31. Bb7 {[%emt 0:02:23]} Rxc8 {[%emt 0:02:49]} 32. Bxc8 {[%emt 0:00:03]} Be4 {[%emt 0:00:12]} 33. Kh2 {[%emt 0:01:36]} Bd6+ {[%emt 0:00:14]} 34. Kh3 {[%emt 0:01:19]} Bd5 {[%emt 0:03:11]} 35. Ba6 {[%emt 0:00:26]} f6 {[%emt 0:00:52]} 36. Bd3+ {[%emt 0:00:19]} g6 {[%emt 0:00:16]} 37. f4 {[%emt 0:03:29]} Kg7 {[%emt 0:00:19]} 38. Kh4 {[%emt 0:04:40]} Kf7 {[%emt 0:00:25]} 39. f5 {[%emt 0:01:52]} g5+ {[%emt 0:06:33]} 40. Kh3 {[%emt 0:00:00]} exf5 {[%emt 0:00:00]} 41. Bxf5 {[%emt 0:04:24]} Bb4 {[%emt 0:03:07]} 42. Kg3 {[%emt 0:00:32]} Be1+ {[%emt 0:00:22]} 43. Kh2 {[%emt 0:00:38]} Ke7 {[%emt 0:00:23]} 44. Kg1 {[%emt 0:00:40]} Kd6 {[%emt 0:00:56]} 45. Kf1 {[%emt 0:00:16]} Bb4 {[%emt 0:00:36]} 46. Ke2 {[%emt 0:00:27] Ke5} 1/2-1/2

[Event "WSCC  M65 2019"]
[Site "Bucharest"]
[Date "2019.11.12"]
[Round "1.46"]
[White "Shirazi, Kamran"]
[Black "Olesen, Poul Erik Norgaard"]
[Result "1-0"]
[ECO "B06"]
[WhiteElo "2349"]
[BlackElo "1978"]
[Annotator "NA"]
[PlyCount "57"]
[EventDate "2019.11.12"]
[EventType "swiss"]
[EventCountry "ROU"]
[SourceTitle "playchess.com"]
[Source "ChessBase"]
[SourceQuality "1"]
[TimeControl "40/5400+30:1800+30"]

1. d4 {[%emt 0:03:03]} g6 {[%emt 0:00:00]} 2. e4 {[%emt 0:00:07]} Bg7 {[%emt 0:00:00]} 3. Bc4 {[%emt 0:00:18]} d6 {[%emt 0:01:15]} 4. Nf3 {[%emt 0:00:12]} Nf6 {[%emt 0:00:12]} 5. Nc3 {[%emt 0:00:37]} O-O {[%emt 0:00:30]} 6. Be3 {[%emt 0:00:38]} Nxe4 {[%emt 0:01:53]} 7. Nxe4 {[%emt 0:00:24]} d5 {[%emt 0:00:11]} 8. Bd3 {[%emt 0:02:10]} dxe4 {[%emt 0:00:09]} 9. Bxe4 {[%emt 0:00:10]} Nd7 {[%emt 0:02:33]} 10. c3 {[%emt 0:02:19]} c6 {[%emt 0:05:10]} 11. Bc2 {[%emt 0:01:03]} e5 {[%emt 0:02:33]} 12. O-O {[%emt 0:04:51]} Qc7 {[%emt 0:03:09]} 13. dxe5 {[%emt 0:03:45]} Nxe5 {[%emt 0:00:15]} 14. Nxe5 {[%emt 0:00:23]} Bxe5 {[%emt 0:00:13]} 15. f4 {[%emt 0:00:14]} Bg7 {[%emt 0:08:01]} 16. Qf3 {[%emt 0:00:18]} Be6 {[%emt 0:07:19]} 17. f5 {[%emt 0:00:10]} Bd5 {[%emt 0:00:56]} 18. Qh3 {[%emt 0:00:25]} Rfe8 {[%emt 0:03:04]} 19. Rf2 {[%emt 0:11:13]} Be5 {[%emt 0:10:15]} 20. Bg5 {[%emt 0:12:03]} f6 {[%emt 0:10:51]} 21. fxg6 {[%emt 0:09:09]} fxg5 {[%emt 0:02:25]} 22. Rf7 {[%emt 0:00:33]} Bxf7 {[%emt 0:13:39]} 23. gxf7+ {[%emt 0:00:30]} Kxf7 {[%emt 0:00:15]} 24. Qxh7+ {[%emt 0:00:10]} Ke6 {[%emt 0:00:42]} 25. Qf5+ {[%emt 0:04:29]} Kd6 {[%emt 0:07:21]} 26. Rd1+ {[%emt 0:00:31]} Kc5 {[%emt 0:00:50]} 27. Qf2+ {[%emt 0:00:05]} Kb5 {[%emt 0:00:28]} 28. Bd3+ {[%emt 0:00:10]} Ka5 {[%emt 0:00:23]} 29. b4+ 1-0

[Event "WSCC  M65 2019"]
[Site "Bucharest"]
[Date "2019.11.12"]
[Round "1.48"]
[White "Berkovich, Mark A"]
[Black "Ladisic, Alex-Sacha"]
[Result "1-0"]
[ECO "A46"]
[WhiteElo "2336"]
[BlackElo "1972"]
[Annotator "NA"]
[PlyCount "45"]
[EventDate "2019.11.12"]
[EventType "swiss"]
[EventCountry "ROU"]
[SourceTitle "playchess.com"]
[Source "ChessBase"]
[SourceQuality "1"]
[TimeControl "40/5400+30:1800+30"]

1. d4 {[%emt 0:00:00]} Nf6 {[%emt 0:00:00]} 2. Nf3 {[%emt 0:00:00]} d6 {[%emt 0:00:00]} 3. g3 {[%emt 0:00:23]} g6 {[%emt 0:00:38]} 4. Bg2 {[%emt 0:00:32]} Bg7 {[%emt 0:00:06]} 5. O-O {[%emt 0:00:10]} O-O {[%emt 0:00:06]} 6. b3 {[%emt 0:00:06]} Nc6 {[%emt 0:03:29]} 7. Bb2 {[%emt 0:00:26]} e5 {[%emt 0:01:27]} 8. dxe5 {[%emt 0:00:16]} Ng4 {[%emt 0:00:06]} 9. c4 {[%emt 0:01:44]} Ngxe5 {[%emt 0:01:19]} 10. Nxe5 {[%emt 0:04:04]} Nxe5 {[%emt 0:00:10]} 11. Nc3 {[%emt 0:00:57]} a5 {[%emt 0:10:33]} 12. Rc1 {[%emt 0:15:50]} Re8 {[%emt 0:17:24]} 13. Qd2 {[%emt 0:01:28]} Rb8 {[%emt 0:02:47]} 14. h3 {[%emt 0:05:08]} Bd7 {[%emt 0:05:11]} 15. Nb5 {[%emt 0:11:20]} b6 {[%emt 0:15:09]} 16. Rfd1 {[%emt 0:10:07]} f6 {[%emt 0:09:39]} 17. Ba3 {[%emt 0:06:12]} Kh8 {[%emt 0:05:34]} 18. Nxc7 {[%emt 0:07:19]} Qxc7 {[%emt 0:00:24]} 19. Bxd6 {[%emt 0:00:05]} Qc8 {[%emt 0:02:14]} 20. Bxb8 {[%emt 0:02:33]} Bxh3 {[%emt 0:01:33]} 21. Bxe5 {[%emt 0:01:27]} fxe5 {[%emt 0:00:33]} 22. Bxh3 {[%emt 0:01:04]} Qxh3 {[%emt 0:00:07]} 23. Qd7 {[%emt 0:00:12]} 1-0